[Event "XIX Najdorf Memorial 2019"]
[Site "Warsaw"]
[Date "2019.07.10"]
[Round "5.32"]
[White "Maj, Pawel"]
[Black "Fiedorek, Michal"]
[Result "0-1"]
[ECO "B66"]
[WhiteElo "2127"]
[BlackElo "2241"]
[Annotator "NA"]
[PlyCount "80"]
[EventDate "2019.07.06"]
[EventType "swiss"]
[EventCountry "POL"]
[SourceTitle "playchess.com"]
[Source "ChessBase"]
[SourceQuality "1"]
[TimeControl "40/5400+30:1800+30"]

1. e4 {[%emt 0:00:00]} c5 {[%emt 0:00:00]} 2. Nf3 {[%emt 0:00:00]} Nc6 {[%emt 0:00:00]} 3. d4 {[%emt 0:00:00]} cxd4 {[%emt 0:00:00]} 4. Nxd4 {[%emt 0:00:00]} Nf6 {[%emt 0:00:18]} 5. Nc3 {[%emt 0:00:05]} d6 {[%emt 0:00:06]} 6. Bg5 {[%emt 0:00:29]} e6 {[%emt 0:00:12]} 7. Qd2 {[%emt 0:00:26]} a6 {[%emt 0:00:19]} 8. Nxc6 {[%emt 0:02:22]} bxc6 {[%emt 0:00:19]} 9. O-O-O {[%emt 0:00:09]} Qa5 {[%emt 0:12:51]} 10. Bxf6 {[%emt 0:05:29]} gxf6 {[%emt 0:00:14]} 11. Bc4 {[%emt 0:00:16]} Rb8 {[%emt 0:10:19]} 12. Bb3 {[%emt 0:03:55]} h5 {[%emt 0:09:30]} 13. f4 {[%emt 0:06:57]} Qb6 {[%emt 0:04:46]} 14. Kb1 {[%emt 0:05:19]} a5 {[%emt 0:02:43]} 15. Rhe1 {[%emt 0:05:34]} Bd7 {[%emt 0:07:56]} 16. a4 {[%emt 0:14:37]} Bc8 {[%emt 0:12:12]} 17. f5 {[%emt 0:13:01]} e5 {[%emt 0:02:09]} 18. Qe3 {[%emt 0:01:16]} Qxe3 {[%emt 0:07:22]} 19. Rxe3 {[%emt 0:00:04]} Ba6 {[%emt 0:00:43]} 20. Rh3 {[%emt 0:04:25]} Ke7 {[%emt 0:03:45]} 21. Ka2 {[%emt 0:05:27]} Bg7 {[%emt 0:11:01]} 22. Nb1 {[%emt 0:01:05]} Bh6 {[%emt 0:02:04]} 23. Rc3 {[%emt 0:05:22]} Rb6 {[%emt 0:02:14]} 24. Bc4 {[%emt 0:04:43]} Bxc4+ {[%emt 0:03:40]} 25. Rxc4 {[%emt 0:00:04]} Rg8 {[%emt 0:01:04]} 26. g3 {[%emt 0:01:28]} Rg4 {[%emt 0:00:50]} 27. Nc3 {[%emt 0:01:05]} h4 {[%emt 0:01:56]} 28. Rd3 {[%emt 0:02:57]} Kd7 {[%emt 0:01:08]} 29. b3 {[%emt 0:01:15]} Rb8 {[%emt 0:01:06]} 30. Kb2 {[%emt 0:01:10]} hxg3 {[%emt 0:00:41]} 31. hxg3 {[%emt 0:00:29]} Rbg8 {[%emt 0:01:50]} 32. Rc5 {[%emt 0:02:21]} Be3 {[%emt 0:00:44]} 33. Rxa5 {[%emt 0:01:47]} Bd4 {[%emt 0:00:53]} 34. Ka3 {[%emt 0:02:26]} Kc7 {[%emt 0:00:36]} 35. Ne2 {[%emt 0:02:25]} Bb6 {[%emt 0:00:31]} 36. Ra6 {[%emt 0:01:53]} Rxe4 {[%emt 0:00:52]} 37. Nc3 {[%emt 0:01:33]} Bc5+ {[%emt 0:00:10]} 38. Kb2 {[%emt 0:01:13]} Reg4 {[%emt 0:00:24]} 39. Ne2 {[%emt 0:02:30]} Kb7 {[%emt 0:00:29]} 40. Ra5 {[%emt 0:00:00]} Bb4 {[%emt 0:00:00]} 0-1

[Event "XIX Najdorf Memorial 2019"]
[Site "Warsaw"]
[Date "2019.07.11"]
[Round "6.1"]
[White "Heberla, Bartlomiej"]
[Black "Shevchenko, Kirill"]
[Result "1/2-1/2"]
[ECO "B92"]
[WhiteElo "2534"]
[BlackElo "2536"]
[Annotator "ChessBase"]
[PlyCount "41"]
[EventDate "2019.07.06"]
[EventType "swiss"]
[EventCountry "POL"]
[SourceTitle "playchess.com"]
[Source "ChessBase"]
[SourceQuality "1"]
[TimeControl "40/5400+30:1800+30"]

1. e4 {[%emt 0:05:39]} c5 {[%emt 0:00:00]} 2. Nf3 {[%emt 0:00:04]} d6 {[%emt 0:00:00]} 3. d4 {[%emt 0:00:04]} cxd4 {[%emt 0:00:00]} 4. Nxd4 {[%emt 0:00:06]} Nf6 {[%emt 0:00:00]} 5. Nc3 {[%emt 0:00:06]} a6 {[%emt 0:00:00]} 6. Be2 {[%emt 0:00:04]} e5 {[%emt 0:00:00]} 7. Nb3 {[%emt 0:00:07]} Be7 {[%emt 0:00:09]} 8. O-O {[%emt 0:00:08]} O-O {[%emt 0:00:06]} 9. Be3 {[%emt 0:00:05]} Be6 {[%emt 0:00:25]} 10. Qd2 {[%emt 0:00:08]} Nbd7 {[%emt 0:06:33]} 11. a4 {[%emt 0:03:18]} Qc7 {[%emt 0:03:21]} 12. Rfd1 {[%emt 0:00:13]} b6 {[%emt 0:08:17]} 13. Nc1 {[%emt 0:20:24]} Nc5 {[%emt 0:28:11]} 14. Bf3 {[%emt 0:22:27]} Rfd8 {[%emt 0:19:34]} 15. Qe2 {[%emt 0:03:42]} Qb7 {[%emt 0:05:21]} 16. Bg5 {[%emt 0:03:03]} Ne8 {[%emt 0:04:19]} 17. Bxe7 {[%emt 0:01:39]} Qxe7 {[%emt 0:00:01]} 18. N1a2 {[%emt 0:00:42]} Bxa2 {[%emt 0:00:46]} 19. Rxa2 {[%emt 0:04:59]} Nf6 {[%emt 0:00:09]} 20. Qe3 {[%emt 0:05:13]} Qc7 {[%emt 0:00:46]} 21. Nd5 {[%emt 0:04:32]} 1/2-1/2

[Event "XIX Najdorf Memorial 2019"]
[Site "Warsaw"]
[Date "2019.07.11"]
[Round "6.1"]
[White "Janik, Igor"]
[Black "AlHuwar, Jasem"]
[Result "1/2-1/2"]
[ECO "B06"]
[WhiteElo "2495"]
[BlackElo "2255"]
[Annotator "ChessBase"]
[PlyCount "65"]
[EventDate "2019.07.06"]
[EventType "swiss"]
[EventCountry "POL"]
[SourceTitle "playchess.com"]
[Source "ChessBase"]
[SourceQuality "1"]
[TimeControl "40/5400+30:1800+30"]

1. e4 {[%emt 0:00:00]} g6 {[%emt 0:06:53]} 2. d4 {[%emt 0:00:00]} Bg7 {[%emt 0:00:05]} 3. Nc3 {[%emt 0:00:00]} d6 {[%emt 0:00:05]} 4. Be3 {[%emt 0:00:00]} c6 {[%emt 0:00:10]} 5. a4 {[%emt 0:00:12]} Qc7 {[%emt 0:00:32]} 6. f4 {[%emt 0:01:16]} e5 {[%emt 0:01:24]} 7. Nf3 {[%emt 0:00:13]} Bg4 {[%emt 0:00:51]} 8. Be2 {[%emt 0:01:48]} Nd7 {[%emt 0:03:08]} 9. O-O {[%emt 0:00:57]} Ngf6 {[%emt 0:16:12]} 10. h3 {[%emt 0:09:31]} Bxf3 {[%emt 0:00:16]} 11. Bxf3 {[%emt 0:00:07]} O-O {[%emt 0:00:52]} 12. Qd2 {[%emt 0:00:15]} Rfe8 {[%emt 0:05:05]} 13. Rad1 {[%emt 0:01:49]} Rad8 {[%emt 0:01:15]} 14. Qf2 {[%emt 0:02:42]} a6 {[%emt 0:04:34]} 15. g4 {[%emt 0:00:58]} h6 {[%emt 0:06:05]} 16. Bg2 {[%emt 0:04:51]} Re7 {[%emt 0:06:50]} 17. dxe5 {[%emt 0:02:26]} dxe5 {[%emt 0:00:13]} 18. f5 {[%emt 0:00:06]} g5 {[%emt 0:00:50]} 19. Rd3 {[%emt 0:00:20]} Ree8 {[%emt 0:04:01]} 20. Rfd1 {[%emt 0:01:08]} Bf8 {[%emt 0:00:12]} 21. Bf3 {[%emt 0:09:26]} Be7 {[%emt 0:10:14]} 22. h4 {[%emt 0:01:15]} Nh7 {[%emt 0:00:23]} 23. Kg2 {[%emt 0:02:25]} gxh4 {[%emt 0:03:15]} 24. Bxh6 {[%emt 0:00:17]} Nc5 {[%emt 0:00:55]} 25. Rxd8 {[%emt 0:03:42]} Rxd8 {[%emt 0:00:07]} 26. g5 {[%emt 0:06:13]} Rxd1 {[%emt 0:04:12]} 27. Bxd1 {[%emt 0:03:06]} Qd8 {[%emt 0:00:55]} 28. f6 {[%emt 0:02:44]} Bf8 {[%emt 0:00:23]} 29. g6 {[%emt 0:00:18]} fxg6 {[%emt 0:01:39]} 30. f7+ {[%emt 0:01:43]} Kh8 {[%emt 0:00:14]} 31. Bxf8 {[%emt 0:05:11]} Qxf8 {[%emt 0:00:21]} 32. Bg4 {[%emt 0:00:16]} a5 {[%emt 0:08:16]} 33. Qxh4 {[%emt 0:01:43]} 1/2-1/2

[Event "XIX Najdorf Memorial 2019"]
[Site "Warsaw"]
[Date "2019.07.11"]
[Round "6.2"]
[White "Jakubowski, Krzysztof"]
[Black "Punin, Andrii"]
[Result "1-0"]
[ECO "D53"]
[WhiteElo "2528"]
[BlackElo "2305"]
[Annotator "ChessBase"]
[PlyCount "85"]
[EventDate "2019.07.06"]
[EventType "swiss"]
[EventCountry "POL"]
[SourceTitle "playchess.com"]
[Source "ChessBase"]
[SourceQuality "1"]
[TimeControl "40/5400+30:1800+30"]

1. d4 d5 2. c4 e6 3. Nc3 Nf6 4. Bg5 Be7 5. e3 Nbd7 6. Nf3 h6 7. Bh4 O-O 8. Rc1 c5 9. cxd5 Nxd5 10. Bxe7 Nxe7 11. Be2 Qa5 12. O-O Rd8 13. a3 cxd4 14. Nxd4 Nf6 15. Qc2 Bd7 16. Bf3 e5 17. Nb3 Qb6 18. Nd2 Rac8 19. Rfd1 Bg4 20. h3 Bxf3 21. Nxf3 Nc6 22. Rxd8+ Rxd8 23. Na4 Qb5 24. Nc5 Rd6 25. b4 b6 26. Nb7 Re6 27. Rd1 Ne8 28. Nd8 Nxd8 29. Rxd8 a5 30. bxa5 bxa5 31. a4 Qb4 32. Rd5 e4 33. Nd4 Nf6 34. Rb5 Qd6 35. Nxe6 Qxe6 36. Rxa5 g5 37. Qb2 g4 38. hxg4 Nxg4 39. Ra8+ Kh7 40. Qh8+ Kg6 41. Qg8+ Kf6 42. Qd8+ Kg6 43. Qc8 1-0

[Event "XIX Najdorf Memorial 2019"]
[Site "Warsaw"]
[Date "2019.07.11"]
[Round "6.3"]
[White "Siekanski, Janusz"]
[Black "Ali Marandi, Cemil Can"]
[Result "0-1"]
[ECO "D10"]
[WhiteElo "2270"]
[BlackElo "2527"]
[Annotator "ChessBase"]
[PlyCount "108"]
[EventDate "2019.07.06"]
[EventType "swiss"]
[EventCountry "POL"]
[SourceTitle "playchess.com"]
[Source "ChessBase"]
[SourceQuality "1"]
[TimeControl "40/5400+30:1800+30"]

1. d4 d5 2. c4 c6 3. cxd5 cxd5 4. Nc3 Nc6 5. Nf3 Nf6 6. Bf4 Nh5 7. Bd2 g6 8. Qb3 e6 9. e4 dxe4 10. Nxe4 Be7 11. Bb5 O-O 12. Bxc6 bxc6 13. O-O Nf6 14. Nxf6+ Bxf6 15. Bf4 Qb6 16. Qe3 Rd8 17. Bg5 Bxg5 18. Qxg5 Rd5 19. Qh6 Rh5 20. Qe3 c5 21. Rfd1 Bb7 22. Ne5 cxd4 23. Rxd4 Qxb2 24. Rad1 Bd5 25. Ng4 Kg7 26. R4d2 Qb4 27. Rd4 Qa5 28. Rf4 e5 29. Nxe5 Re8 30. Nc4 Rxe3 31. Nxa5 Ra3 32. g4 Re5 33. Nc4 Rd3 34. Ra1 Re2 35. Ne3 Be6 36. h4 Ra3 37. Rd4 Raxa2 38. Ra4 Rxa1+ 39. Rxa1 Ra2 40. Rxa2 Bxa2 41. g5 Bb3 42. Kf1 a5 43. Ke2 a4 44. Kd3 a3 45. Kc3 a2 46. Kb2 Be6 47. Nf1 f5 48. f4 Kf7 49. Ng3 Bc4 50. h5 Ke6 51. h6 Kd6 52. Ka1 Kc5 53. Nxf5 gxf5 54. g6 Bg8 0-1

[Event "XIX Najdorf Memorial 2019"]
[Site "Warsaw"]
[Date "2019.07.11"]
[Round "6.4"]
[White "Dragun, Kamil"]
[Black "Sieciechowicz, Marcin"]
[Result "1-0"]
[ECO "D12"]
[WhiteElo "2604"]
[BlackElo "2399"]
[Annotator "RC"]
[PlyCount "109"]
[EventDate "2019.07.06"]
[EventType "swiss"]
[EventCountry "POL"]
[SourceTitle "playchess.com"]
[Source "ChessBase"]
[SourceQuality "1"]
[TimeControl "40/5400+30:1800+30"]

1. c4 c6 2. Nf3 Nf6 3. e3 d5 4. d4 Bf5 5. Nc3 e6 6. Nh4 Bg6 7. Nxg6 hxg6 {[%emt 0:03:19]} 8. g3 {[%emt 0:01:21]} Nbd7 {[%emt 0:00:38]} 9. Qe2 {[%emt 0:00:18]} Bb4 {[%emt 0:04:12]} 10. Bg2 {[%emt 0:02:23]} Bxc3+ {[%emt 0:06:53]} 11. bxc3 {[%emt 0:00:06]} Qa5 {[%emt 0:05:20]} 12. O-O Qa6 {[%emt 0:11:28]} 13. Re1 {[%emt 0:02:57]} dxc4 {[%emt 0:03:15]} 14. a4 {[%emt 0:02:12]} Nb6 {[%emt 0:07:32]} 15. a5 {[%emt 0:04:19]} Rh5 {[%emt 0:15:30]} 16. Qa2 {[%emt 0:00:51]} Nbd5 {[%emt 0:00:20]} 17. Bd2 {[%emt 0:05:42]} Kd7 {[%emt 0:05:45]} 18. Bf1 {[%emt 0:10:03]} b5 {[%emt 0:06:14]} 19. e4 {[%emt 0:22:06]} Nc7 {[%emt 0:00:04]} 20. h4 Rd8 {[%emt 0:03:29]} 21. Qa3 {[%emt 0:01:35]} Rhh8 {[%emt 0:02:06]} 22. Bg5 {[%emt 0:02:42]} Rde8 {[%emt 0:01:22]} 23. Bf4 {[%emt 0:03:34]} Kc8 {[%emt 0:00:31]} 24. Qd6 {[%emt 0:02:23]} Qb7 {[%emt 0:01:18]} 25. Rab1 {[%emt 0:00:27]} Rd8 {[%emt 0:01:30]} 26. Qa3 {[%emt 0:03:47]} Nh5 {[%emt 0:01:48]} 27. Bg5 {[%emt 0:01:16]} f6 28. Be3 {[%emt 0:00:16]} f5 {[%emt 0:03:52]} 29. Bg5 {[%emt 0:01:02]} Rde8 {[%emt 0:05:16]} 30. Bxc4 {[%emt 0:01:12]} Nf6 {[%emt 0:03:09]} 31. Bd3 {[%emt 0:07:17]} a6 {[%emt 0:01:06]} 32. c4 {[%emt 0:01:52]} Kb8 {[%emt 0:01:07]} 33. Bf4 {[%emt 0:03:36]} Ka8 {[%emt 0:01:37]} 34. Bxc7 {[%emt 0:01:16]} Qxc7 {[%emt 0:01:44]} 35. e5 {[%emt 0:00:05]} Ng4 {[%emt 0:01:44]} 36. Be2 {[%emt 0:09:08]} Qe7 {[%emt 0:00:43]} 37. Qf3 {[%emt 0:01:55]} Qb7 {[%emt 0:00:01]} 38. Qg2 {[%emt 0:02:48]} Ka7 {[%emt 0:01:16]} 39. Bf3 {[%emt 0:00:20]} Rc8 {[%emt 0:01:12]} 40. cxb5 {[%emt 0:00:00]} axb5 {[%emt 0:00:00]} 41. Rec1 Rc7 42. Rxc6 {[%emt 0:03:42]} Rhc8 {[%emt 0:12:17]} 43. Rxc7 {[%emt 0:01:38]} Qxc7 {[%emt 0:00:06]} 44. Bxg4 {[%emt 0:00:12]} fxg4 {[%emt 0:02:06]} 45. Rxb5 {[%emt 0:08:02]} Qc1+ {[%emt 0:01:17]} 46. Qf1 {[%emt 0:00:13]} Qd2 {[%emt 0:01:49]} 47. Rb1 {[%emt 0:00:36]} Rf8 {[%emt 0:03:17]} 48. Rd1 {[%emt 0:00:47]} Qa2 {[%emt 0:01:55]} 49. Qe1 {[%emt 0:00:57]} Rf3 {[%emt 0:00:51]} 50. d5 exd5 {[%emt 0:00:09]} 51. e6 {[%emt 0:00:48]} Rf8 52. e7 {[%emt 0:00:31]} Re8 {[%emt 0:00:32]} 53. Qe3+ {[%emt 0:00:35]} Ka8 {[%emt 0:00:21]} 54. Qc5 {[%emt 0:00:21]} Qb3 {[%emt 0:00:41]} 55. Rxd5 {[%emt 0:01:03]} 1-0

[Event "XIX Najdorf Memorial 2019"]
[Site "Warsaw"]
[Date "2019.07.11"]
[Round "6.4"]
[White "Lisowski, Krzysztof"]
[Black "Gukesh D"]
[Result "0-1"]
[ECO "B31"]
[WhiteElo "2187"]
[BlackElo "2520"]
[Annotator "RC"]
[PlyCount "98"]
[EventDate "2019.07.06"]
[EventType "swiss"]
[EventCountry "POL"]
[TimeControl "40/5400+30:1800+30"]

1. e4 {[%emt 0:00:00]} c5 {[%emt 0:00:00]} 2. Nf3 {[%emt 0:00:20]} Nc6 {[%emt 0:00:09]} 3. Bb5 {[%emt 0:00:54]} g6 {[%emt 0:00:21]} 4. Bxc6 {[%emt 0:01:26]} dxc6 {[%emt 0:00:08]} 5. d3 {[%emt 0:01:21]} Bg7 {[%emt 0:00:03]} 6. h3 {[%emt 0:01:03]} Nf6 {[%emt 0:01:13]} 7. Nc3 {[%emt 0:01:16]} Nd7 {[%emt 0:00:05]} 8. Be3 {[%emt 0:00:49]} e5 {[%emt 0:00:10]} 9. Qd2 {[%emt 0:00:51]} h6 {[%emt 0:00:11]} 10. O-O {[%emt 0:01:07]} b6 {[%emt 0:00:27]} 11. Nh2 {[%emt 0:00:43]} Nf8 {[%emt 0:01:14]} 12. f4 {[%emt 0:00:30]} exf4 {[%emt 0:00:04]} 13. Bxf4 {[%emt 0:00:50]} Ne6 {[%emt 0:05:33]} 14. Be3 {[%emt 0:01:47]} Nd4 {[%emt 0:01:05]} 15. Nd1 {[%emt 0:02:24]} Be6 {[%emt 0:01:18]} 16. c3 {[%emt 0:01:40]} Nb5 {[%emt 0:00:06]} 17. a4 {[%emt 0:00:53]} Nd6 {[%emt 0:03:20]} 18. Nf2 {[%emt 0:01:01]} a5 {[%emt 0:14:47]} 19. b4 {[%emt 0:18:31]} axb4 {[%emt 0:09:46]} 20. cxb4 {[%emt 0:00:13]} cxb4 {[%emt 0:02:12]} 21. Qxb4 {[%emt 0:01:51]} c5 {[%emt 0:00:21]} 22. Qd2 {[%emt 0:00:50]} g5 {[%emt 0:20:58]} 23. Qc1 {[%emt 0:20:56]} f5 {[%emt 0:04:05]} 24. Bd2 {[%emt 0:10:32]} fxe4 {[%emt 0:09:15]} 25. Bc3 {[%emt 0:02:23]} O-O {[%emt 0:00:49]} 26. Bxg7 {[%emt 0:01:35]} Kxg7 {[%emt 0:00:06]} 27. Qb2+ {[%emt 0:05:58]} Qf6 {[%emt 0:06:02]} 28. Qxf6+ {[%emt 0:06:51]} Rxf6 {[%emt 0:01:06]} 29. dxe4 {[%emt 0:00:16]} Rf7 {[%emt 0:00:33]} 30. Nf3 {[%emt 0:07:45]} Rfa7 {[%emt 0:00:30]} 31. h4 {[%emt 0:03:20]} g4 {[%emt 0:03:46]} 32. Ne5 {[%emt 0:00:10]} Rxa4 {[%emt 0:02:25]} 33. Rad1 {[%emt 0:01:52]} Nxe4 {[%emt 0:03:32]} 34. Nfxg4 {[%emt 0:00:30]} Rd4 {[%emt 0:03:38]} 35. Rxd4 {[%emt 0:03:07]} cxd4 {[%emt 0:00:02]} 36. Rf4 {[%emt 0:00:24]} Nc3 {[%emt 0:01:44]} 37. Kh2 {[%emt 0:01:05]} Ne2 {[%emt 0:03:48]} 38. Rf2 {[%emt 0:00:45]} Bxg4 {[%emt 0:02:06]} 39. Nxg4 {[%emt 0:00:05]} d3 {[%emt 0:00:56]} 40. Ne5 {[%emt 0:00:00]} Ra4 {[%emt 0:00:00]} 41. Nf3 {[%emt 0:11:28]} b5 {[%emt 0:12:44]} 42. Kh3 {[%emt 0:07:01]} Ra1 {[%emt 0:01:54]} 43. Kg4 {[%emt 0:00:55]} b4 {[%emt 0:00:51]} 44. Nd2 {[%emt 0:06:38]} Ra2 {[%emt 0:01:07]} 45. Nc4 {[%emt 0:03:43]} d2 {[%emt 0:01:11]} 46. Ne3 {[%emt 0:00:21]} b3 {[%emt 0:00:20]} 47. Rf5 {[%emt 0:04:50]} b2 {[%emt 0:00:37]} 48. Rb5 {[%emt 0:00:21]} Ra4+ {[%emt 0:00:10]} 49. Kh3 {[%emt 0:00:31]} Ra3 {[%emt 0:00:02]} 0-1

[Event "XIX Najdorf Memorial 2019"]
[Site "Warsaw"]
[Date "2019.07.11"]
[Round "6.5"]
[White "Fedorov, Alexei"]
[Black "Goslawski, Michal"]
[Result "1-0"]
[ECO "C26"]
[WhiteElo "2551"]
[BlackElo "2091"]
[Annotator "ChessBase"]
[PlyCount "105"]
[EventDate "2019.07.06"]
[EventType "swiss"]
[EventCountry "POL"]
[SourceTitle "playchess.com"]
[Source "ChessBase"]
[SourceQuality "1"]
[TimeControl "40/5400+30:1800+30"]

1. e4 e5 2. Nc3 Nf6 3. g3 Bc5 4. Bg2 Nc6 5. Nge2 Nd4 6. Na4 {[%emt 0:07:11]} Nxe2 {[%emt 0:00:36]} 7. Qxe2 {[%emt 0:00:19]} Be7 {[%emt 0:00:07]} 8. O-O {[%emt 0:01:00]} d6 {[%emt 0:04:31]} 9. c4 {[%emt 0:00:29]} Bg4 {[%emt 0:03:12]} 10. f3 {[%emt 0:01:18]} Bd7 {[%emt 0:02:03]} 11. Nc3 {[%emt 0:00:12]} h5 {[%emt 0:00:21]} 12. h3 {[%emt 0:04:35]} c6 {[%emt 0:20:53]} 13. d3 {[%emt 0:05:00]} h4 {[%emt 0:04:19]} 14. g4 {[%emt 0:00:22]} Nh7 {[%emt 0:00:22]} 15. f4 {[%emt 0:02:22]} g5 {[%emt 0:02:59]} 16. fxe5 {[%emt 0:12:24]} dxe5 {[%emt 0:00:07]} 17. Qf2 {[%emt 0:00:32]} Be6 {[%emt 0:00:21]} 18. Nd5 {[%emt 0:00:53]} O-O {[%emt 0:03:41]} 19. Nxe7+ {[%emt 0:00:39]} Qxe7 {[%emt 0:00:05]} 20. Be3 {[%emt 0:00:37]} Rfd8 {[%emt 0:00:28]} 21. Rfd1 {[%emt 0:09:55]} b6 {[%emt 0:03:29]} 22. c5 {[%emt 0:01:05]} Qb7 {[%emt 0:05:20]} 23. b3 {[%emt 0:03:18]} bxc5 {[%emt 0:06:41]} 24. Bxc5 {[%emt 0:03:18]} Rd7 {[%emt 0:06:38]} 25. Rd2 {[%emt 0:00:44]} Kg7 {[%emt 0:03:00]} 26. d4 {[%emt 0:03:35]} Rad8 {[%emt 0:03:23]} 27. Rad1 {[%emt 0:00:33]} f6 {[%emt 0:01:41]} 28. dxe5 {[%emt 0:02:21]} fxe5 {[%emt 0:00:38]} 29. Rxd7+ {[%emt 0:05:47]} Rxd7 {[%emt 0:00:13]} 30. Rxd7+ {[%emt 0:00:41]} Qxd7 {[%emt 0:00:32]} 31. Bxa7 {[%emt 0:00:23]} Qd1+ {[%emt 0:02:20]} 32. Kh2 {[%emt 0:00:44]} Nf8 {[%emt 0:07:19]} 33. Be3 {[%emt 0:00:58]} Nh7 {[%emt 0:01:26]} 34. Qd2 {[%emt 0:02:32]} Qxd2 {[%emt 0:00:22]} 35. Bxd2 {[%emt 0:00:04]} Kf6 {[%emt 0:00:40]} 36. Bb4 {[%emt 0:00:44]} Bf7 {[%emt 0:00:05]} 37. Kg1 {[%emt 0:02:00]} Ke6 {[%emt 0:00:06]} 38. Kf2 {[%emt 0:00:28]} Nf6 {[%emt 0:03:12]} 39. Bd2 {[%emt 0:01:16]} Bg6 {[%emt 0:02:39]} 40. Bxg5 {[%emt 0:00:00]} Nxe4+ {[%emt 0:00:00]} 41. Bxe4 {[%emt 0:00:38]} Bxe4 {[%emt 0:00:13]} 42. Bxh4 {[%emt 0:02:06]} Kd5 {[%emt 0:01:26]} 43. b4 {[%emt 0:08:28]} Bd3 {[%emt 0:07:57]} 44. a4 {[%emt 0:04:02]} c5 {[%emt 0:02:42]} 45. bxc5 {[%emt 0:01:07]} Kxc5 {[%emt 0:00:08]} 46. a5 {[%emt 0:00:08]} Kd5 {[%emt 0:02:08]} 47. Bf6 {[%emt 0:00:39]} Ke4 {[%emt 0:00:53]} 48. Kg3 {[%emt 0:00:11]} Kd5 {[%emt 0:00:54]} 49. h4 {[%emt 0:00:09]} Ke6 {[%emt 0:00:10]} 50. Bg7 {[%emt 0:00:19]} Ba6 {[%emt 0:03:03]} 51. h5 {[%emt 0:00:33]} e4 {[%emt 0:00:18]} 52. Bd4 {[%emt 0:01:04]} Kf7 {[%emt 0:02:26]} 53. g5 {[%emt 0:00:13]} 1-0

[Event "XIX Najdorf Memorial 2019"]
[Site "Warsaw"]
[Date "2019.07.11"]
[Round "6.5"]
[White "Klekowski, Maciej"]
[Black "Godzwon, Iwo"]
[Result "1/2-1/2"]
[ECO "D70"]
[WhiteElo "2482"]
[BlackElo "2285"]
[Annotator "ChessBase"]
[PlyCount "78"]
[EventDate "2019.07.06"]
[EventType "swiss"]
[EventCountry "POL"]
[SourceTitle "playchess.com"]
[Source "ChessBase"]
[SourceQuality "1"]
[TimeControl "40/5400+30:1800+30"]

1. d4 {[%emt 0:05:18]} Nf6 {[%emt 0:00:00]} 2. c4 {[%emt 0:00:05]} g6 {[%emt 0:00:00]} 3. f3 {[%emt 0:00:06]} d5 {[%emt 0:00:31]} 4. cxd5 {[%emt 0:00:05]} Nxd5 {[%emt 0:00:02]} 5. e4 {[%emt 0:00:07]} Nb6 {[%emt 0:00:02]} 6. Nc3 {[%emt 0:00:12]} Bg7 {[%emt 0:00:10]} 7. Be3 {[%emt 0:00:05]} O-O {[%emt 0:09:51]} 8. Qd2 {[%emt 0:02:02]} e5 {[%emt 0:01:11]} 9. d5 {[%emt 0:00:06]} c6 {[%emt 0:00:01]} 10. O-O-O {[%emt 0:00:10]} cxd5 {[%emt 0:03:43]} 11. exd5 {[%emt 0:00:53]} Na6 {[%emt 0:05:22]} 12. h4 {[%emt 0:05:30]} Bd7 {[%emt 0:00:08]} 13. h5 {[%emt 0:07:47]} Rc8 {[%emt 0:00:13]} 14. Kb1 {[%emt 0:01:54]} Nb4 {[%emt 0:07:51]} 15. g4 {[%emt 0:17:23]} Rxc3 {[%emt 0:00:04]} 16. bxc3 {[%emt 0:03:10]} N4xd5 {[%emt 0:04:15]} 17. hxg6 {[%emt 0:03:42]} fxg6 {[%emt 0:09:36]} 18. Bc4 {[%emt 0:10:05]} Be6 {[%emt 0:00:03]} 19. Bb3 {[%emt 0:01:10]} Qc8 {[%emt 0:12:07]} 20. Rc1 {[%emt 0:18:12]} Nc4 {[%emt 0:04:30]} 21. Bxc4 {[%emt 0:00:43]} Qxc4 {[%emt 0:00:04]} 22. Bh6 {[%emt 0:00:46]} Bxh6 {[%emt 0:15:19]} 23. Rxh6 {[%emt 0:00:35]} Rc8 {[%emt 0:03:39]} 24. Nh3 {[%emt 0:11:16]} Rd8 {[%emt 0:02:27]} 25. Ka1 {[%emt 0:03:41]} Rd6 {[%emt 0:00:03]} 26. Ng5 {[%emt 0:01:39]} Nb4 {[%emt 0:00:09]} 27. cxb4 {[%emt 0:01:29]} Rxd2 {[%emt 0:00:03]} 28. Rxc4 {[%emt 0:00:04]} Bxc4 {[%emt 0:00:02]} 29. Rxh7 {[%emt 0:00:30]} Rxa2+ {[%emt 0:00:34]} 30. Kb1 {[%emt 0:00:02]} b5 {[%emt 0:02:03]} 31. Rd7 {[%emt 0:01:32]} Ra4 {[%emt 0:05:50]} 32. Ne4 {[%emt 0:00:19]} Bf7 {[%emt 0:02:42]} 33. Kc2 {[%emt 0:00:03]} Rxb4 {[%emt 0:00:49]} 34. Rxa7 {[%emt 0:00:06]} Rd4 {[%emt 0:00:46]} 35. Re7 {[%emt 0:03:30]} b4 {[%emt 0:04:40]} 36. Rxe5 {[%emt 0:00:06]} b3+ {[%emt 0:00:01]} 37. Kb2 {[%emt 0:00:28]} Rd3 {[%emt 0:00:08]} 38. f4 {[%emt 0:00:37]} Rh3 {[%emt 0:02:10]} 39. Nd6 {[%emt 0:00:48]} Rd3 {[%emt 0:01:04]} 1/2-1/2

[Event "XIX Najdorf Memorial 2019"]
[Site "Warsaw"]
[Date "2019.07.11"]
[Round "6.6"]
[White "Shyam, Sundar M."]
[Black "Galperin, Platon"]
[Result "0-1"]
[ECO "C65"]
[WhiteElo "2520"]
[BlackElo "2445"]
[Annotator "ChessBase"]
[PlyCount "64"]
[EventDate "2019.07.06"]
[EventType "swiss"]
[EventCountry "POL"]
[SourceTitle "playchess.com"]
[Source "ChessBase"]
[SourceQuality "1"]
[TimeControl "40/5400+30:1800+30"]

1. e4 {[%emt 0:00:00]} e5 {[%emt 0:00:00]} 2. Nf3 {[%emt 0:00:00]} Nc6 {[%emt 0:00:00]} 3. Bb5 {[%emt 0:00:00]} Nf6 {[%emt 0:00:00]} 4. d3 {[%emt 0:00:08]} Ne7 {[%emt 0:00:00]} 5. O-O {[%emt 0:11:45]} c6 {[%emt 0:00:27]} 6. Ba4 {[%emt 0:01:06]} Ng6 {[%emt 0:00:37]} 7. c3 {[%emt 0:00:15]} Be7 {[%emt 0:00:53]} 8. Re1 {[%emt 0:10:58]} O-O {[%emt 0:00:08]} 9. Nbd2 {[%emt 0:00:02]} d5 {[%emt 0:16:33]} 10. exd5 {[%emt 0:06:09]} Qxd5 {[%emt 0:00:04]} 11. Ne4 {[%emt 0:02:41]} Bf5 {[%emt 0:08:23]} 12. Nfg5 {[%emt 0:33:14]} Rad8 {[%emt 0:08:56]} 13. Bc2 {[%emt 0:05:25]} Qd7 {[%emt 0:27:15]} 14. Be3 {[%emt 0:08:03]} Nd5 {[%emt 0:04:37]} 15. d4 {[%emt 0:06:17]} Bg4 {[%emt 0:01:58]} 16. Qd3 {[%emt 0:02:10]} h6 {[%emt 0:09:22]} 17. Nxf7 {[%emt 0:02:03]} Rxf7 {[%emt 0:03:13]} 18. Nc5 {[%emt 0:00:05]} Bxc5 {[%emt 0:08:24]} 19. Qxg6 {[%emt 0:00:07]} Bb6 {[%emt 0:00:11]} 20. Qh7+ {[%emt 0:03:20]} Kf8 {[%emt 0:00:00]} 21. Bxh6 {[%emt 0:01:40]} gxh6 {[%emt 0:01:22]} 22. Qh8+ {[%emt 0:01:57]} Ke7 {[%emt 0:00:01]} 23. Rxe5+ {[%emt 0:00:17]} Be6 {[%emt 0:01:39]} 24. Qxh6 {[%emt 0:00:02]} Rg8 {[%emt 0:07:23]} 25. Rae1 {[%emt 0:02:55]} Rf6 {[%emt 0:00:02]} 26. Qh4 {[%emt 0:01:18]} Kf7 {[%emt 0:00:54]} 27. Rh5 {[%emt 0:00:58]} Rg7 {[%emt 0:00:31]} 28. Rh8 {[%emt 0:00:12]} Nf4 {[%emt 0:00:24]} 29. Rf8+ {[%emt 0:00:20]} Kxf8 {[%emt 0:00:03]} 30. Qxf6+ {[%emt 0:00:02]} Qf7 {[%emt 0:00:22]} 31. Qh6 {[%emt 0:00:04]} Nxg2 {[%emt 0:00:38]} 32. Rxe6 {[%emt 0:01:51]} Qxe6 {[%emt 0:00:45]} 0-1